Workbook

Sheet 报价汇总
A1: 施维雅市场服务报价单
A4: 项目名称: | B4: Servier 2018-2019 1st Cycle Meeting | D4: 供应商名称: | F4: 伯乐仕（北京）国际商业策划有限公司
A5: 预计完成日期: | B5: 2018, Oct, 19th | D5: 供应商联系电话: | F5: 郭燕雷
A6: 项目地点： | B6: Xi An | D6: 电子邮箱： | F6: 15811515220
A9: 序号 | B9: 服务类目 | D9: 预算小计 | E9: 结算小计 | F9: 说明
A10: 1 | B10: 创意设计 | D10: =Creative创意设计!H48 -> 73324 | E10: =Creative创意设计!L48 -> 114624
A11: 2 | B11: 搭建制作 | D11: =Event搭建制作!I176 -> 1975850 | E11: =Event搭建制作!M176 -> 1970788.243
A12: 3 | B12: Video视频 | D12: =Video视频!G48 -> 269450 | E12: =Video视频!K48 -> 252750
B13: 不含税总计 | D13: =SUM(D10:D12) -> 2318624 | E13: =SUM(E10:E12) -> 2338162.243
A15: 增值税金额小计(CNY): | D15: =D13*0.06 -> 139117.44 | E15: =E13*0.06 -> 140289.7346 | F15: 施维雅只接受6%的增值税专用税,其他税费请含进单价中
A16: 含税总计(CNY): | C16: 含税总计(CNY) | D16: =D13+D15 -> 2457741.44 | E16: =E13+E15 -> 2478451.978
A18: 备注： | B18: 其他项费用总计： | D18: 47000 | F18: 施维雅采购部内部使用，请勿修改内部公式
A20: 说明:
A21: 1.此报价模板内有公式，各项服务小计都自动来自于各类目的明细表，请不要擅自修改；
A22: 2.此报价模板为报价单首页，报价时请在分项明细页填写分项合计需与首页一致；

Sheet Sheet1 (hidden)
A2: Creative | F2: Event&Production | K2: Video Production
A3: 求和项:总价 | F3: 求和项:总价 | K3: 行标签 | L3: 求和项:总价 Subtotal
A4: 大会环节 | B4: 类别 Category | C4: 汇总 | F4: 大会环节 | G4: 类别 | H4: 项目 Item | I4: 汇总 | K4: Opening video (plenary session)（大会开场视频） | L4: 0
A5: Closing ceremony | B5: 主形象设计 | C5: 0 | F5: Team Building | G5: 人员 | H5: 人员费用 | K5: Post-event video - Closing ceremony（闭幕式现场花絮视频） | L5: 0
A6: For all sessions | B6: 微信相关 | C6: 0 | F6: (空白) | G6: AV设备租赁 | H6: Camera（摄像器材） | I6: 0 | K6: Post-event video - Gala dinner（晚宴现场花絮视频） | L6: 0
A7: Gala dinner | B7: 主形象设计 | C7: 0 | H7: 灯光设备租赁 | I7: 0 | K7: Post-event video - Opening cermony（大会现场花絮剪辑视频） | L7: 0
A8: Plenary session | B8: 主形象设计 | C8: 0 | H8: 视频设备租赁 | I8: 0 | K8: Post-event video - Team building（拓展活动现场花絮视频） | L8: 0
A9: Team Building | B9: 主形象设计 | C9: 0 | H9: 音频设备租赁 | I9: 0 | K9: Top Sales Video（销售明星视频） | L9: 0
A10: (空白) | B10: 其他 | C10: 0 | G10: 差旅费用 | H10: 差旅费用 | I10: 0 | K10: Warm-up Video(大会暖场视频) | L10: 0
B11: 图片 | C11: 0 | G11: 搭建 | H11: 搭建 | I11: 0 | K11: 其他 | L11: 0
B12: 完稿 | C12: 0 | G12: 道具/礼品 | H12: 道具 | K12: 总计 | L12: 0
B13: 延展设计 | C13: 0 | H13: 礼品
A14: 总计 | C14: 0 | G14: 其他 | H14: 其他 | I14: 0
G15: 人员 | H15: 人员费用 | I15: 0
G16: 运输费用 | H16: 物料运输费用 | I16: 0
G17: 制作 | H17: KT板 | I17: 0
H18: X架 | I18: 0
H19: 横幅 | I19: 0
H20: 讲台前板 | I20: 0
H21: 热转印布拉网展架 | I21: 0
H22: 提示牌 | I22: 0
H23: 写真画面 | I23: 0
H24: 易拉宝 | I24: 0
F25: 总计 | I25: 0

Sheet Creative创意设计
A1: 施维雅报价明细-创意和设计
A4: Currency币种:CNY人民币
A5: 说明：
A6: * | B6: 施维雅只接受6%的增值税,其他税费请一律含进单价
A7: * | B7: 如有任何修改或添加行，请用红色字体显示
A8: * | B8: 请不要删除行
A9: * | B9: 所有单价都不含增值税
F11: 具体项目预算 Quotation | J11: 具体项目结算 Quotation
A12: 类别 Category | B12: 项目 Item | C12: 内容描述 Description | D12: 大会环节 | E12: 收费单位 Unit | F12: 单价 Unit Price | G12: 数量 Unit | H12: 总价 Subtotal | I12: 是否第三方费用 ?（Y/N) | J12: 单价 Unit Price | K12: 数量 Unit | L12: 总价 Subtotal | M12: 是否第三方费用 ?（Y/N) | N12: 人员职务 Profile | O12: Cost/ Day | P12: 人工天 days | Q12: 备注
A13: 主形象设计 | B13: KV | C13: 整体活动等形象的整体全新创意；特指从无到有 | D13: Plenary session | E13: 个 | F13: 1000 | G13: 1 | H13: =F13*G13 -> 1000 | I13: N | J13: 1000 | K13: 1 | L13: =J13*K13 -> 1000 | M13: N
A14: 主形象设计 | B14: Slogan/Theme | C14: 整体活动等形象的整体全新创意；特指从无到有 | D14: Plenary session | E14: 个 | F14: 500 | G14: 1 | H14: =F14*G14 -> 500 | I14: N | J14: 500 | K14: 1 | L14: =J14*K14 -> 500 | M14: N
A15: 主形象设计 | B15: KV | C15: 整体活动等形象的整体全新创意；特指从无到有 | D15: Team Building | E15: 个 | F15: 1000 | G15: 1 | H15: 1000 | I15: N | J15: 1000 | K15: 0 | L15: 0 | M15: N | Q15: 减少项
A16: 主形象设计 | B16: Slogan/Theme | C16: 整体活动等形象的整体全新创意；特指从无到有 | D16: Team Building | E16: 个 | F16: 500 | G16: 1 | H16: 500 | I16: N | J16: 500 | K16: 0 | L16: 0 | M16: N | Q16: 减少项
A17: 主形象设计 | B17: KV | C17: 整体活动等形象的整体全新创意；特指从无到有 | D17: Zone dinner | E17: 个 | F17: 1000 | G17: 1 | H17: =F17*G17 -> 1000 | I17: N | J17: 1000 | K17: 1 | L17: 1000 | M17: N
A18: 主形象设计 | B18: Slogan/Theme | C18: 整体活动等形象的整体全新创意；特指从无到有 | D18: Zone dinner | E18: 个 | F18: 500 | G18: 1 | H18: 500 | I18: N | J18: 500 | K18: 1 | L18: 500 | M18: N
A19: 主形象设计 | B19: 项目策划及文案撰写费 | C19: 整个项目活动策划创意、环节设计，包含活动流程设计及项目涉及到的所有文案类撰写 | D19: Plenary session | E19: 个 | F19: 1000 | G19: 1 | H19: =F19*G19 -> 1000 | I19: N | J19: 1000 | K19: 1 | L19: 1000 | M19: N
A20: 主形象设计 | B20: 项目策划及文案撰写费 | C20: 整个项目活动策划创意、环节设计，包含活动流程设计及项目涉及到的所有文案类撰写 | D20: Team Building | E20: 个 | F20: 1000 | G20: 1 | H20: 1000 | I20: N | J20: 1000 | K20: 1 | L20: 1000 | M20: N
A21: 主形象设计 | B21: 项目策划及文案撰写费 | C21: 整个项目活动策划创意、环节设计，包含活动流程设计及项目涉及到的所有文案类撰写 | D21: Zone dinner | E21: 个 | F21: 1000 | G21: 1 | H21: 1000 | I21: N | J21: 1000 | K21: 1 | L21: 1000 | M21: N
A22: 延展设计 | B22: 展板设计 | C22: 展板不分材质和类型，包含易拉宝、X型展架、KT板等设计；每项目只支付一个设计，不分规格 | D22: For all sessions | E22: 个 | F22: 200 | G22: 1 | H22: 200 | I22: N | J22: 200 | K22: 1 | L22: 200 | M22: N
A23: 延展设计 | B23: 会议邀请函设计 | C23: H5页面设计 | D23: For all sessions | E23: 个 | F23: 500 | G23: 1 | H23: 500 | I23: N | J23: 500 | K23: 6 | L23: 3000 | M23: N | Q23: 增加项，数量调整
A24: 延展设计 | B24: 海报设计 | C24: Rise up、Gala dinner、Plenary、TB、Zone dinner、Football game、Basketball game | D24: For all sessions | E24: 个 | F24: 200 | G24: 7 | H24: 1400 | I24: N | J24: 200 | K24: 6 | L24: 1200 | M24: N | Q24: 减少项，最终设计6个海报
A25: 延展设计 | B25: 桌卡三面 | C25: 每项目只支付一个设计，不分规格 | D25: For all sessions | E25: 个 | F25: 600 | G25: 1 | H25: 0 | I25: N | J25: 600 | K25: 1 | L25: 0 | M25: N
A26: 延展设计 | B26: 桌卡 | C26: 晚宴主桌领导桌卡 | D26: Gala dinner | E26: 个 | F26: 200 | G26: 1 | H26: 0 | I26: N | J26: 200 | K26: 1 | L26: 0 | M26: N
A27: 延展设计 | B27: 横幅 | C27: 如果只涉及会议名称和logo,应免设计费 | D27: Team Building | E27: 个 | F27: 0 | G27: 2 | H27: 0 | I27: N | J27: 0 | K27: 5 | L27: =J27*K27 -> 0 | M27: N
A28: 延展设计 | B28: PPT模板设计 | C28: 如果只涉及会议名称和logo,应免设计费 | D28: Plenary session | E28: 套 | F28: 300 | G28: 2 | H28: 600 | I28: N | J28: 300 | K28: 2 | L28: 600 | M28: N
A29: 延展设计 | B29: 拍照海报设计 | C29: 拍照海报设计 | D29: Plenary session | E29: 组 | J29: 2000 | K29: 1 | L29: =J29*K29 -> 2000 | M29: N
A30: 延展设计 | B30: Keynote制作 | C30: 内容制作与美化 | D30: Plenary session | J30: 35000 | K30: 1 | L30: =J30*K30 -> 35000 | M30: Y
A31: 3D设计 | B31: 会议舞台设计 | C31: 整体设计 | D31: Plenary session | E31: 套 | F31: 5000 | G31: 1 | H31: =F31*G31 -> 5000 | I31: N | J31: 5000 | K31: 1 | L31: 5000 | M31: N
A32: 3D设计 | B32: 晚宴舞台设计 | C32: 整体设计 | D32: Gala dinner | E32: 套 | F32: 5000 | G32: 1 | H32: 5000 | I32: N | J32: 5000 | K32: 1 | L32: 5000 | M32: N
A33: 图片 | B33: 图片租赁 | D33: For all sessions | E33: 幅 | F33: 5000 | G33: 1 | H33: 5000 | I33: N | J33: 5000 | K33: 1 | L33: 5000 | M33: N
A34: 图片 | B34: 漫画/插画 （手绘） | C34: 手绘卡通形象，例如应用在患教手册中的；游戏场景设计中的等 | D34: For all sessions | E34: 个 | H34: 0 | I34: N | L34: 0 | M34: N
A35: 完稿 | B35: 4K/8K | C35: 幻灯片除外 | D35: For all sessions | E35: 页 | H35: 0 | I35: N | L35: 0 | M35: N
A36: 完稿 | B36: 16K/32K | C36: 幻灯片除外 | D36: For all sessions | E36: 页 | H36: 0 | I36: N | L36: 0 | M36: N
A37: 完稿 | B37: 2K/易拉宝/拉网展架/背景板 | D37: For all sessions | E37: 个 | F37: 200 | G37: 1 | H37: 200 | I37: N | J37: 200 | K37: 1 | L37: 200 | M37: N
A38: 完稿 | B38: 大型写真喷绘 | C38: 最高不超10个小时 | D38: For all sessions | E38: 个 | H38: 0 | I38: N | L38: 0 | M38: N
A39: 完稿 | B39: 图表描图 | C39: 扫描需要图片的费用 | D39: For all sessions | E39: 个 | H39: 0 | I39: N | L39: 0 | M39: N
A40: 微信相关 | B40: 数据维护、录入 | D40: For all sessions | E40: 小时 | F40: 80 | G40: 48 | H40: 3840 | I40: Y | J40: 80 | K40: 48 | L40: 3840 | M40: Y
A41: 微信相关 | B41: 微信页面设计\编辑 | D41: For all sessions | E41: 页/page | F41: 2000 | G41: 6 | H41: 12000 | I41: Y | J41: 2000 | K41: 6 | L41: 12000 | M41: Y
A42: 微信相关 | B42: 流程管理、平台运行维护 | D42: For all sessions | E42: 小时 | F42: 50 | G42: 500 | H42: =G42*F42 -> 25000 | I42: Y | J42: 50 | K42: 500 | L42: =K42*J42 -> 25000 | M42: Y
A43: 微信相关 | B43: 微信视频生成及运营 | D43: For all sessions | E43: 项 | F43: 1000 | G43: 3 | H43: =G43*F43 -> 3000 | I43: N | J43: 1000 | K43: 3 | L43: =K43*J43 -> 3000 | M43: N
G44: 创意和设计部分总计(不含服务费和税费): | H44: =SUM(H13:H43) -> 69240 | K44: 创意和设计部分总计(不含服务费和税费): | L44: =SUM(L13:L43) -> 107040
G45: 其他项费用总计： | H45: 0 | K45: 其他项费用总计： | L45: 0
G46: 第三方费用小计 Total 3rd party cost: | H46: =H42+H40+H41 -> 40840 | K46: 第三方费用小计 Total 3rd party cost: | L46: =L42+L40+L41+L30 -> 75840
A47: 服务费 Service Fee | C47: 市场营销公司垫付的零星第三方支出，需要收取在实际发生基础上收取服务费的部分。请注意需要付款时提供第三方发票作为支持文件。 | G47: 0.1 | H47: =H46*G47 -> 4084 | K47: 0.1 | L47: =L46*K47 -> 7584
G48: 不含税总计: | H48: =H47+H44 -> 73324 | K48: 不含税总计: | L48: =L47+L44 -> 114624
F49: 税金 Tax | G49: 0.06 | H49: =H48*0.06 -> 4399.44 | J49: 税金 Tax | K49: 0.06 | L49: =L48*0.06 -> 6877.44

Sheet Event搭建制作
A3: 施维雅报价明细-制作搭建
A6: Currency币种:CNY人民币
A7: 说明：
A8: * | B8: 施维雅只接受6%的增值税,其他税费请一律含进单价
A9: * | B9: 如有任何修改或添加行，请用红色字体显示
A10: * | B10: 请不要删除行
A11: * | B11: 所有单价都不含增值税
G13: 具体项目预算 Quotation | K13: 具体项目结算 Quotation
A14: 类别 | B14: 项目 Item | C14: 规格 Specification | D14: 内容描述 Description | E14: 大会环节 | F14: 收费单位 Unit | G14: 单价 Unit Price | H14: 数量 Unit | I14: 总价 Subtotal | J14: 是否第三方费用?（Y/N) | K14: 单价 Unit Price | L14: 数量 Unit | M14: 总价 Subtotal | N14: 是否第三方费用?（Y/N) | O14: 备注
A15: 制作 | B15: 热转印布拉网展架 | C15: 3×3 M | D15: 展架外包装为塑料硬质包装箱；展架材质为挤压无缝铝合金管，塑料模块为ABS工程塑料；画面材质为1440DPI高光相纸喷绘，背覆PVC片。 | F15: 个 | I15: =G15*H15 -> 0 | J15: Y | M15: =K15*L15 -> 0 | N15: Y
A16: 制作 | B16: 热转印布拉网展架 | C16: 3×4 M | D16: 展架外包装为塑料硬质包装箱；展架材质为挤压无缝铝合金管，塑料模块为ABS工程塑料；画面材质为1441DPI高光相纸喷绘，背覆PVC片。 | F16: 个 | I16: 0 | J16: Y | M16: 0 | N16: Y
A17: 制作 | B17: 热转印布拉网展架 | C17: 2x3 M | D17: 展架外包装为塑料硬质包装箱；展架材质为挤压无缝铝合金管，塑料模块为ABS工程塑料；画面材质为1442DPI高光相纸喷绘，背覆PVC片。 | F17: 个 | I17: 0 | J17: Y | M17: 0 | N17: Y
A18: 制作 | B18: 易拉宝 | C18: 2x0.8 M | E18: Plenary session | F18: 个 | G18: 200 | H18: 6 | I18: =G18*H18 -> 1200 | J18: Y | K18: 200 | L18: 2 | M18: =K18*L18 -> 400 | N18: Y | O18: 减少项，座位图易拉宝
A19: 制作 | B19: 易拉宝 | C19: 2×0.85 M | D19: 铝合金3节杆65mm弹簧内芯，高光相纸220克厚覆亚膜（1.3米以上宽度用双支撑杆），全铝合金底脚 | E19: For all sessions | F19: 个 | I19: =G19*H19 -> 0 | J19: Y | M19: =K19*L19 -> 0 | N19: Y
A20: 制作 | B20: 易拉宝 | C20: 2×1.2 M | D20: 铝合金3节杆65mm弹簧内芯，高光相纸220克厚覆亚膜（1.4米以上宽度用双支撑杆），全铝合金底脚 | E20: For all sessions | F20: 个 | I20: 0 | J20: Y | M20: 0 | N20: Y
A21: 制作 | B21: 易拉宝 | C21: 2×1.5 M | D21: 铝合金3节杆65mm弹簧内芯，高光相纸220克厚覆亚膜（1.5米以上宽度用双支撑杆），全铝合金底脚 | E21: For all sessions | F21: 个 | I21: 0 | J21: Y | M21: 0 | N21: Y
A22: 制作 | B22: X架 | C22: 1.6×0.6 M | D22: 展架底部材质为无缝钢管，上部为碳铅杆；画面为背胶裱pvc片 | E22: For all sessions | F22: 个 | I22: 0 | J22: Y | M22: 0 | N22: Y
A23: 制作 | B23: X架 | C23: 1.8×0.8M | D23: 展架底部材质为无缝钢管，上部为碳铅杆；画面为背胶裱pvc片 | E23: For all sessions | F23: 个 | I23: 0 | J23: Y | M23: 0 | N23: Y
A24: 制作 | B24: X架 | C24: 2×1.2 M | D24: 展架底部材质为无缝钢管，上部为碳铅杆；画面为背胶裱pvc片 | E24: For all sessions | F24: 个 | I24: 0 | J24: Y | M24: 0 | N24: Y
A25: 制作 | B25: 横幅 | C25: 单色，写真布 | D25: 设计免费 | E25: Team Building | F25: 5米 | G25: 200 | H25: 4 | I25: =G25*H25 -> 800 | J25: Y | K25: 200 | L25: 5 | M25: =K25*L25 -> 1000 | N25: Y | O25: 增加项，数量调整；Hugues\Stephane\Brad\Esteve/张同贺
A26: 制作 | B26: 横幅 | C26: 4色 喷绘布 | E26: For all sessions | F26: 8至10米 | I26: 0 | J26: Y | M26: =K26*L26 -> 0 | N26: Y
A27: 制作 | B27: 写真画面 | C27: 单面 | E27: For all sessions | F27: 平米 | I27: 0 | J27: Y | M27: 0 | N27: Y
A28: 制作 | B28: 手举牌 | C28: 双面 | D28: 40*60cm雪弗板+手举杆；zone1-zone6+HQ office | E28: Plenary session | F28: 个 | G28: 100 | H28: 7 | I28: 700 | J28: Y | K28: 100 | L28: 7 | M28: 700 | N28: Y
A29: 制作 | B29: 提示牌 | C29: 写真 KT板 | D29: 亚展板；1440DPI写真喷绘 | E29: For all sessions | F29: 个 | I29: 0 | J29: Y | M29: 0 | N29: Y
A30: 制作 | B30: 指示牌 | C30: 写真 KT板 | D30: KT板+铁质支架 | E30: Plenary session | F30: 个 | K30: 150 | L30: 7 | M30: 1050 | N30: Y | O30: 增加项，区域座位前指示牌
A31: 制作 | B31: 奖杯 | C31: 奖杯制作 | E31: Team Building | F31: 个 | K31: 500 | L31: 2 | M31: =K31*L31 -> 1000 | N31: Y | O31: 增加项，足球赛篮球赛奖杯
A32: 制作 | B32: 手卡 | C32: 主持人手卡 | E32: For all sessions | F32: 张 | G32: 6 | H32: 100 | I32: 600 | J32: Y | K32: 6 | L32: 0 | M32: 0 | N32: Y | O32: 减少项
A33: 制作 | B33: 席位卡 | C33: 可转移背胶 | E33: Plenary session | F33: 个 | G33: 5 | H33: 1600 | I33: 8000 | J33: Y | K33: 5 | L33: 1000 | M33: 5000 | N33: Y | O33: 减少项；数量减少
A34: 制作 | B34: 麦标套 | C34: 雪弗板 | D34: SERVIER logo | E34: For all sessions | F34: 张 | K34: 50 | L34: 8 | M34: 400 | N34: Y | O34: 增加项，手持麦使用
A35: 制作 | B35: 旗子 | C35: 施维雅40周年大旗 | D35: 绸缎布，拼接，彩色印刷；14M*16M | E35: Plenary session | F35: 平米 | K35: 90 | L35: 224 | M35: 20160 | N35: Y
A36: 场地 | B36: 场地 | C36: 场地费用 | D36: 吧桌布污损+墙面损坏 | E36: For all sessions | F36: 项 | K36: 2240 | L36: 1 | M36: 2240 | N36: Y | O36: 场地损坏费用
A37: 搭建 | B37: 搭建 | C37: 场地吊点费用 | D37: 西安绿地笔克场地吊点费用 | E37: For all sessions | F37: 处 | K37: 500 | L37: 28 | M37: =K37*L37 -> 14000 | N37: Y | O37: 增加项；场地吊点费用
A38: 搭建 | B38: 搭建 | C38: 椭圆舞台 | D38: 木质结构，异形；16M*10M*0.8M | E38: Gala dinner | F38: 平米 | G38: 300 | H38: 160 | I38: 48000 | J38: Y | K38: 300 | L38: 160 | M38: 48000 | N38: Y
A39: 搭建 | B39: 搭建 | C39: 圆弧台阶 | D39: 木质结构，异形；20M三步台阶 | E39: Gala dinner | F39: 米 | G39: 500 | H39: 20 | I39: 10000 | J39: Y | K39: 500 | L39: 20 | M39: 10000 | N39: Y
A40: 搭建 | B40: 搭建 | C40: T形舞台 | D40: 钢木结构加一层找平板；14M*6M*0.8MH | E40: Plenary session | F40: 平米 | G40: 200 | H40: 84 | I40: 16800 | J40: Y | K40: 200 | L40: 84 | M40: 16800 | N40: Y | AB40: Plenary session
A41: 搭建 | B41: 搭建 | C41: 舞台 | D41: 钢木结构加一层找平板；24M*1.2M*0.8MH | E41: Plenary session | F41: 平米 | K41: 200 | L41: 28 | M41: =K41*L41 -> 5600 | N41: Y | O41: LED前侧舞台 | AB41: Plenary session
A42: 搭建 | B42: 搭建 | C42: 舞台周边 | D42: 18mm夹板围边 | E42: Plenary session | F42: 平米 | G42: 80 | H42: 28 | I42: 2240 | J42: Y | K42: 80 | L42: 28 | M42: 2240 | N42: Y | AB42: Gala dinner
A43: 搭建 | B43: 搭建 | C43: 舞台地毯 | D43: 烟灰色拉绒地毯；16M*10M+14M*6M+20M台阶 | E43: Plenary session | F43: 平米 | G43: 35 | H43: 264 | I43: 9240 | J43: Y | K43: 35 | L43: 264 | M43: 9240 | N43: Y | AB43: Rise up
A44: 搭建 | B44: 搭建 | C44: 半场遮挡 | D44: 黑丝绒+遮光布+隔断网架；50M*6M | E44: Plenary session | F44: 平米 | G44: 70 | H44: 300 | I44: 21000 | J44: Y | K44: 70 | L44: 300 | M44: 21000 | N44: Y | AB44: Team Building
A45: 搭建 | B45: 搭建 | C45: 舞台吊饰 | D45: 吊挂发光灯球；1M直径 | E45: Gala dinner | F45: 套 | G45: 1200 | H45: 10 | I45: 12000 | J45: Y | K45: 1500 | L45: 8 | M45: 12000 | N45: Y | O45: 灯带更改为灯球 | AB45: For all sessions
A46: 搭建 | B46: 搭建 | C46: 两侧装饰 | D46: 舞台两侧LED灯球装饰；80、60、40CM直径 | E46: Plenary session | F46: 套 | G46: 4500 | H46: 2 | I46: 9000 | J46: Y | K46: 10000 | L46: 1 | M46: 10000 | N46: Y | O46: 更改为灯球 | AB46: Zone dinner
A47: 搭建 | B47: 搭建 | C47: LED主屏幕地台 | D47: 24000m*1000mmh；打褶黑丝绒遮挡 | E47: Plenary session | F47: 米 | G47: 300 | H47: 24 | I47: =G47*H47 -> 7200 | J47: Y | K47: 300 | L47: 24 | M47: 7200 | N47: Y | AB47: Zone dinner
A48: 搭建 | B48: 搭建 | C48: LED侧屏幕地台 | D48: 12000mm*2000mmh*2；打褶黑丝绒遮挡 | E48: Plenary session | F48: 米 | K48: 300 | L48: 48 | M48: =K48*L48 -> 14400 | N48: Y | O48: 增加项；尺寸调整 | AB48: Zone dinner
A49: 搭建 | B49: 搭建 | C49: 纱幕背板 | D49: 黑丝绒+遮光布+隔断网架；12M*8.5M*2 | E49: Plenary session | F49: 平米 | K49: 70 | L49: 204 | M49: =K49*L49 -> 14280 | N49: Y | O49: 增加项；尺寸调整 | AB49: Zone dinner
A50: 搭建 | B50: 搭建 | C50: 搭建人员费用 | D50: 舞美搭建-布展搭建人工 | E50: For all sessions | F50: 人次 | G50: 300 | H50: 120 | I50: =G50*H50 -> 36000 | J50: Y | K50: 300 | L50: 120 | M50: 36000 | N50: Y
A51: 搭建 | B51: 搭建 | C51: 搭建人员交通 | D51: 舞美搭建-西安布展搭建人工交通 | E51: For all sessions | F51: 趟 | G51: 500 | H51: 48 | I51: 24000 | J51: Y | K51: 500 | L51: 48 | M51: 24000 | N51: Y
A52: 搭建 | B52: 搭建 | C52: 搭建物料运输费用 | D52: 舞美搭建-所有物料运输；成都-西安 | E52: For all sessions | F52: 趟 | G52: 10000 | H52: 6 | I52: 60000 | J52: Y | K52: 10000 | L52: 6 | M52: 60000 | N52: Y
A53: AV设备租赁 | B53: 视频设备租赁 | C53: LED大屏幕 | D53: Gloshine P3 LED Display （24000mmX6000mm、12000mmX3000mm*2） | E53: Plenary session | F53: 平米 | G53: 600 | H53: 216 | I53: 129600 | J53: Y | K53: 600 | L53: 216 | M53: 129600 | N53: Y
A54: AV设备租赁 | B54: 视频设备租赁 | C54: 大屏处理器 | D54: Gloshine 560 LED Controller | E54: Plenary session | F54: 台 | G54: 1000 | H54: 8 | I54: 8000 | J54: Y | K54: 1000 | L54: 8 | M54: 8000 | N54: Y
A55: AV设备租赁 | B55: 视频设备租赁 | C55: 全息纱幕 | D55: 10000mmX8000mm*2 | E55: Plenary session | F55: 平米 | G55: 500 | H55: 160 | I55: 80000 | J55: Y | K55: 500 | L55: 160 | M55: 80000 | N55: Y
A56: AV设备租赁 | B56: 视频设备租赁 | C56: 高清数字激光投影机 | D56: 松下 Projector 21000流明 | E56: Plenary session | F56: 台 | G56: 12000 | H56: 4 | I56: 48000 | J56: Y | K56: 12000 | L56: 4 | M56: 48000 | N56: Y
A57: AV设备租赁 | B57: 视频设备租赁 | C57: 变焦镜头(5.0-8.0,高亮) | D57: 松下 5.0-8.0 Zoom Lens | E57: Plenary session | F57: 个 | G57: 1500 | H57: 4 | I57: 6000 | J57: Y | K57: 1500 | L57: 4 | M57: 6000 | N57: Y
A58: AV设备租赁 | B58: 视频设备租赁 | C58: 视频处理器(HD/SDI) | D58: BARCO EVENT MASTER E2 Video Processor | E58: Plenary session | F58: 台 | G58: 30000 | H58: 2 | I58: 60000 | J58: Y | K58: 30000 | L58: 2 | M58: 60000 | N58: Y
A59: AV设备租赁 | B59: 视频设备租赁 | C59: 大型控制台 | D59: BARCO EC-200 EVENT Controller | E59: Plenary session | F59: 套 | G59: 10000 | H59: 1 | I59: =G59*H59 -> 10000 | J59: Y | K59: 10000 | L59: 1 | M59: 10000 | N59: Y
A60: AV设备租赁 | B60: 视频设备租赁 | C60: 频率转换器 | D60: IMAGE PRO-II | E60: Plenary session | F60: 个 | G60: 2000 | H60: 2 | I60: 4000 | J60: Y | K60: 2000 | L60: 2 | M60: 4000 | N60: Y
A61: AV设备租赁 | B61: 视频设备租赁 | C61: 翻页提示器套装(带PC-AS4遥控器) | D61: D’SAN PC-433 PerfectCue Light Kit | E61: Plenary session | F61: 套 | G61: 600 | H61: 2 | I61: 1200 | J61: Y | K61: 600 | L61: 2 | M61: 1200 | N61: Y
A62: AV设备租赁 | B62: 视频设备租赁 | C62: 处理器 | D62: DATATON WATCHOUT Video Processor | E62: Plenary session | F62: 个 | G62: 1000 | H62: 8 | I62: 8000 | J62: Y | K62: 1000 | L62: 8 | M62: 8000 | N62: Y
A63: AV设备租赁 | B63: 视频设备租赁 | C63: 解密狗(5.0版本) | D63: DATATON WATCHOUT License Key DATATON WATCHOUT License Key | E63: Plenary session | F63: 个 | G63: 2000 | H63: 8 | I63: 16000 | J63: Y | K63: 2000 | L63: 8 | M63: 16000 | N63: Y
A64: AV设备租赁 | B64: 视频设备租赁 | C64: 网络交换机（千兆，24路） | D64: NETGEAR JGS524 Network Switch ETGEAR JGS524 Network Switch | E64: Plenary session | F64: 个 | G64: 1000 | H64: 2 | I64: 2000 | J64: Y | K64: 1000 | L64: 2 | M64: 2000 | N64: Y
A65: AV设备租赁 | B65: 视频设备租赁 | C65: 光纤延长器 | D65: EXTRON DVI104 Tx/Rx DVI Fiber Optic Extender | E65: Plenary session | F65: 个 | G65: 800 | H65: 13 | I65: =G65*H65 -> 10400 | J65: Y | K65: 800 | L65: 13 | M65: 10400 | N65: Y | O65: 4个电视4个投影机2个耳屏中间3个主屏幕
A66: AV设备租赁 | B66: 视频设备租赁 | C66: 光缆(多模，双工，100m) | D66: KORNING LC-LC Fiber Cable | E66: Plenary session | F66: 组 | G66: 500 | H66: 13 | I66: 6500 | J66: Y | K66: 500 | L66: 13 | M66: 6500 | N66: Y
A67: AV设备租赁 | B67: 视频设备租赁 | C67: 监视器(液晶 ，20") | D67: PHILIPS Monitor | E67: Plenary session | F67: 台 | G67: 500 | H67: 4 | I67: 2000 | J67: Y | K67: 500 | L67: 4 | M67: 2000 | N67: Y
A68: AV设备租赁 | B68: 视频设备租赁 | C68: 液晶电视(55"，全高清) | D68: SHARP LCD-55 | E68: Plenary session | F68: 台 | G68: 800 | H68: 2 | I68: 1600 | J68: Y | K68: 800 | L68: 2 | M68: 1600 | N68: Y
A69: AV设备租赁 | B69: 视频设备租赁 | C69: Mac Pro | D69: 六核，Intel Xeon E5 处理器 (Turbo Boost 最高可达 3.9GHz)，配备 12MB 三级缓存 | E69: Plenary session | F69: 台 | G69: 800 | H69: 1 | I69: 800 | J69: Y | K69: 800 | L69: 1 | M69: 800 | N69: Y
A70: AV设备租赁 | B70: 视频设备租赁 | C70: MAC笔记本电脑 | D70: APPLE , MACBOOK | E70: Plenary session | F70: 台 | G70: 500 | H70: 4 | I70: 2000 | J70: Y | K70: 500 | L70: 4 | M70: 2000 | N70: Y
A71: AV设备租赁 | B71: 视频设备租赁 | C71: Laptop 笔记本电脑 | D71: i7CPU、8G以上内存、输出4K信号 | E71: Plenary session | F71: 台 | G71: 500 | H71: 1 | I71: 500 | J71: Y | K71: 500 | L71: 1 | M71: 500 | N71: Y
A72: AV设备租赁 | B72: 视频设备租赁 | C72: Layer架 | D72: 2m*20m*6m（2*2m1组)；用于主LED屏后方，屏幕保护 | E72: Plenary session | F72: 组 | G72: 800 | H72: 10 | I72: 8000 | J72: Y | K72: 800 | L72: 10 | M72: 8000 | N72: Y
A73: AV设备租赁 | B73: 视频设备租赁 | C73: LED大屏幕 | D73: Gloshine P3LED Display(12000mm*6000mm） | E73: Gala dinner | F73: 平米 | G73: 600 | H73: 72 | I73: 43200 | J73: Y | K73: 600 | L73: 72 | M73: 43200 | N73: Y
A74: AV设备租赁 | B74: 视频设备租赁 | C74: 处理器 | D74: Gloshine 540 LED Controller | E74: Gala dinner | F74: 台 | G74: 1000 | H74: 5 | I74: =G74*H74 -> 5000 | J74: Y | K74: 1000 | L74: 5 | M74: 5000 | N74: Y
A75: AV设备租赁 | B75: 视频设备租赁 | C75: 视频处理器(3M/E , HD/SDI) | D75: BARCO FOLSOM ENCORE EVP-05 Video Processor | E75: Gala dinner | F75: 台 | G75: 10000 | H75: 1 | I75: 10000 | J75: Y | K75: 10000 | L75: 1 | M75: 10000 | N75: Y
A76: AV设备租赁 | B76: 视频设备租赁 | C76: 小型控制台 | D76: BARCO FOLSOM ENCORE Small Controller | E76: Gala dinner | F76: 台 | G76: 7000 | H76: 1 | I76: 7000 | J76: Y | K76: 7000 | L76: 1 | M76: 7000 | N76: Y
A77: AV设备租赁 | B77: 视频设备租赁 | C77: 矩阵 | D77: BARCO DVI 8X8 MARTIX | E77: Gala dinner | F77: 组 | G77: 5000 | H77: 1 | I77: 5000 | J77: Y | K77: 5000 | L77: 1 | M77: 5000 | N77: Y
A78: AV设备租赁 | B78: 视频设备租赁 | C78: 翻页提示器套装(带PC-AS4遥控器) | D78: D’SAN PC-433 PerfectCue Light Kit | E78: Gala dinner | F78: 套 | G78: 800 | H78: 1 | I78: 800 | J78: Y | K78: 800 | L78: 1 | M78: 800 | N78: Y
A79: AV设备租赁 | B79: 视频设备租赁 | C79: 光纤延长器 | D79: EXTRON DVI104 Tx/Rx DVI Fiber Optic Extender | E79: Gala dinner | F79: 个 | G79: 800 | H79: 4 | I79: 3200 | J79: Y | K79: 800 | L79: 4 | M79: 3200 | N79: Y
A80: AV设备租赁 | B80: 视频设备租赁 | C80: 光缆(多模，双工，100m) | D80: KORNING LC-LC Fiber Cable | E80: Gala dinner | F80: 组 | G80: 500 | H80: 4 | I80: 2000 | J80: Y | K80: 500 | L80: 4 | M80: 2000 | N80: Y
A81: AV设备租赁 | B81: 视频设备租赁 | C81: 液晶电视(55"，全高清) | D81: SHARP LCD-55 | E81: Gala dinner | F81: 台 | G81: 800 | H81: 2 | I81: 1600 | J81: Y | K81: 800 | L81: 2 | M81: 1600 | N81: Y
A82: AV设备租赁 | B82: 视频设备租赁 | C82: 监视器(液晶 ，24") | D82: PHILIPS Monitor | E82: Gala dinner | F82: 台 | G82: 500 | H82: 2 | I82: 1000 | J82: Y | K82: 500 | L82: 2 | M82: 1000 | N82: Y
A83: AV设备租赁 | B83: 视频设备租赁 | C83: Layer架 | D83: 2m*10m*4m（2*2m1组)；用于主LED屏后方，屏幕保护 | E83: Plenary session | F83: 组 | G83: 800 | H83: 5 | I83: 4000 | J83: Y | K83: 800 | L83: 5 | M83: 4000 | N83: Y
A84: AV设备租赁 | B84: 音频设备租赁 | C84: 全频音箱（线阵列系列） | D84: d&b Audiotechnik V8 Loudspeaker | E84: Plenary session | F84: 只 | G84: 1200 | H84: 16 | I84: 19200 | J84: Y | K84: 1200 | L84: 16 | M84: 19200 | N84: Y
A85: AV设备租赁 | B85: 音频设备租赁 | C85: 低频音箱（线阵列系列） | D85: d&b Audiotechnik V-Sub Subwoofer | E85: Plenary session | F85: 只 | G85: 1200 | H85: 8 | I85: =G85*H85 -> 9600 | J85: Y | K85: 1200 | L85: 8 | M85: =K85*L85 -> 9600 | N85: Y
A86: AV设备租赁 | B86: 音频设备租赁 | C86: 全频返送音箱 | D86: d&b Audiotechnik Max2 Loudspeaker | E86: Plenary session | F86: 只 | G86: 800 | H86: 8 | I86: =G86*H86 -> 6400 | J86: Y | K86: 800 | L86: 8 | M86: =K86*L86 -> 6400 | N86: Y
A87: AV设备租赁 | B87: 音频设备租赁 | C87: 数字功放 | D87: d&b D40 Digital Power Amplifier | E87: Plenary session | F87: 台 | G87: 1000 | H87: 6 | I87: 6000 | J87: Y | K87: 1000 | L87: 6 | M87: 6000 | N87: Y
A88: AV设备租赁 | B88: 音频设备租赁 | C88: 数字调音台 | D88: YAMAHA QL-5 Digital Mixer(32ch) Digital Mixer(32ch) | E88: Plenary session | F88: 台 | G88: 4500 | H88: 1 | I88: 4500 | J88: Y | K88: 4500 | L88: 1 | M88: 4500 | N88: Y
A89: AV设备租赁 | B89: 音频设备租赁 | C89: 舒尔UR4D+接收机 | D89: SHURE UR4D+ Dual channel diversity receiver | E89: Plenary session | F89: 套 | G89: 400 | H89: 8 | I89: 3200 | J89: Y | K89: 400 | L89: 8 | M89: 3200 | N89: Y
A90: AV设备租赁 | B90: 音频设备租赁 | C90: 无线手持式话筒 | D90: SHURE UR2/Beta 58A Wireless Hand-hold Mic Wireless Hand-hold Mic | E90: Plenary session | F90: 个 | G90: 200 | H90: 8 | I90: 1600 | J90: Y | K90: 200 | L90: 8 | M90: 1600 | N90: Y
A91: AV设备租赁 | B91: 音频设备租赁 | C91: 头戴式话筒 | D91: SHURE UR1/WBH53 Headworn Microphone | E91: Plenary session | F91: 个 | G91: 200 | H91: 8 | I91: 1600 | J91: Y | K91: 200 | L91: 8 | M91: 1600 | N91: Y
A92: AV设备租赁 | B92: 音频设备租赁 | C92: U段天线放大传输系统(带UA870WB指向性天线) | D92: SHURE UA845E UHF Antenna Distribution System | E92: Plenary session | F92: 套 | G92: 700 | H92: 2 | I92: 1400 | J92: Y | K92: 700 | L92: 2 | M92: 1400 | N92: Y
A93: AV设备租赁 | B93: 音频设备租赁 | C93: 有线对讲系统主机 | D93: PRDUCTION INTERCOM MS-200 Master Station | E93: Plenary session | F93: 组 | G93: 1500 | H93: 1 | I93: 1500 | J93: Y | K93: 1500 | L93: 1 | M93: 1500 | N93: Y
A94: AV设备租赁 | B94: 音频设备租赁 | C94: 有线对讲系统接收点 | D94: PRDUCTION INTERCOM Receiver | E94: Plenary session | F94: 个 | G94: 150 | H94: 8 | I94: 1200 | J94: Y | K94: 150 | L94: 8 | M94: 1200 | N94: Y
A95: AV设备租赁 | B95: 音频设备租赁 | C95: 无线对讲系统基站 | D95: CLEARCOM Master Station | E95: Plenary session | F95: 组 | G95: 1500 | H95: 1 | I95: 1500 | J95: Y | K95: 1500 | L95: 1 | M95: 1500 | N95: Y
A96: AV设备租赁 | B96: 音频设备租赁 | C96: 无线对讲系统接收点 | D96: CLEARCOM Receiver | E96: Plenary session | F96: 个 | G96: 500 | H96: 4 | I96: 2000 | J96: Y | K96: 500 | L96: 4 | M96: 2000 | N96: Y
A97: AV设备租赁 | B97: 音频设备租赁 | C97: DI盒 | D97: RADIAL Pro48 Active DI Box | E97: Plenary session | F97: 个 | G97: 300 | H97: 4 | I97: 1200 | J97: Y | K97: 300 | L97: 4 | M97: 1200 | N97: Y
A98: AV设备租赁 | B98: 音频设备租赁 | C98: 全频音箱（线阵列系列） | D98: d&b Audiotechnik V8 Loudspeaker | E98: Gala dinner | F98: 只 | G98: 1200 | H98: 8 | I98: 9600 | J98: Y | K98: 1200 | L98: 8 | M98: 9600 | N98: Y
A99: AV设备租赁 | B99: 音频设备租赁 | C99: 低频音箱（线阵列系列） | D99: d&b Audiotechnik V-Sub Subwoofer | E99: Gala dinner | F99: 只 | G99: 1200 | H99: 4 | I99: 4800 | J99: Y | K99: 1200 | L99: 4 | M99: 4800 | N99: Y
A100: AV设备租赁 | B100: 音频设备租赁 | C100: 全频音箱 | D100: d&b Audiotechnik Y7p Loudspeaker | E100: Gala dinner | F100: 只 | G100: 1000 | H100: 6 | I100: 6000 | J100: Y | K100: 1000 | L100: 6 | M100: 6000 | N100: Y
A101: AV设备租赁 | B101: 音频设备租赁 | C101: 全频返送音箱 | D101: d&b Audiotechnik Max2 Loudspeaker | E101: Gala dinner | F101: 只 | G101: 800 | H101: 4 | I101: 3200 | J101: Y | K101: 800 | L101: 4 | M101: 3200 | N101: Y
A102: AV设备租赁 | B102: 音频设备租赁 | C102: 数字功放 | D102: d&b D40 Digital Power Amplifier | E102: Gala dinner | F102: 台 | G102: 1000 | H102: 5 | I102: 5000 | J102: Y | K102: 1000 | L102: 5 | M102: 5000 | N102: Y
A103: AV设备租赁 | B103: 音频设备租赁 | C103: 数字调音台 | D103: YAMAHA LS-9 Digital Mixer(16ch) | E103: Gala dinner | F103: 台 | G103: 3000 | H103: 2 | I103: 6000 | J103: Y | K103: 3000 | L103: 2 | M103: 6000 | N103: Y | O103: 设备型号调整；晚宴1个序厅1个伴宴音乐
A104: AV设备租赁 | B104: 音频设备租赁 | C104: 舒尔UR4D+接收机 | D104: SHURE UR4D+ Dual channel diversity receiver | E104: Gala dinner | F104: 组 | G104: 400 | H104: 6 | I104: 2400 | J104: Y | K104: 400 | L104: 6 | M104: 2400 | N104: Y
A105: AV设备租赁 | B105: 音频设备租赁 | C105: 无线手持式话筒 | D105: SHURE UR2/Beta 58A Wireless Hand-hold Mic | E105: Gala dinner | F105: 个 | G105: 200 | H105: 8 | I105: 1600 | J105: Y | K105: 200 | L105: 8 | M105: 1600 | N105: Y
A106: AV设备租赁 | B106: 音频设备租赁 | C106: 头戴式话筒 | D106: SHURE UR1/WBH53 Headworn Microphone | E106: Gala dinner | F106: 个 | G106: 200 | H106: 4 | I106: 800 | J106: Y | K106: 200 | L106: 4 | M106: 800 | N106: Y
A107: AV设备租赁 | B107: 音频设备租赁 | C107: 个人监听系统(无线) | D107: SHURE PSM 600 Personal Monitor Systems | E107: Gala dinner | F107: 组 | G107: 500 | H107: 2 | I107: 1000 | J107: Y | K107: 500 | L107: 2 | M107: 1000 | N107: Y
A108: AV设备租赁 | B108: 音频设备租赁 | C108: U段天线放大传输系统(带UA870WB指向性天线) | D108: SHURE UA845E UHF Antenna Distribution System | E108: Gala dinner | F108: 组 | G108: 700 | H108: 2 | I108: 1400 | J108: Y | K108: 700 | L108: 2 | M108: 1400 | N108: Y
A109: AV设备租赁 | B109: 音频设备租赁 | C109: DI盒 | D109: RADIAL Pro48 Active DI Box | E109: Gala dinner | F109: 台 | G109: 300 | H109: 2 | I109: 600 | J109: Y | K109: 300 | L109: 2 | M109: 600 | N109: Y
A110: AV设备租赁 | B110: 视频设备租赁 | C110: Laptop 笔记本电脑 | D110: APPLE , MACBOOK | E110: Gala dinner | F110: 台 | G110: 500 | H110: 2 | I110: 1000 | J110: Y | K110: 500 | L110: 2 | M110: 1000 | N110: Y
A111: AV设备租赁 | B111: 灯光设备租赁 | C111: 图案电脑灯（切片） | D111: Moving lights,1500w Spot-Performance | E111: Plenary session | F111: 只 | G111: 350 | H111: 48 | I111: 16800 | J111: Y | K111: 350 | L111: 35 | M111: 12250 | N111: Y | O111: 数量减少
A112: AV设备租赁 | B112: 灯光设备租赁 | C112: logo灯片 | D112: 施维雅logo+RiSe 4All+40周年 | E112: Plenary session | F112: 个 | K112: 120 | L112: 6 | M112: =K112*L112 -> 720 | N112: Y | O112: 增加项
A113: AV设备租赁 | B113: 灯光设备租赁 | C113: 光束电脑灯 | D113: JOLLY X-15R-Beam | E113: Plenary session | F113: 只 | G113: 350 | H113: 70 | I113: 24500 | J113: Y | K113: 350 | L113: 70 | M113: 24500 | N113: Y
A114: AV设备租赁 | B114: 灯光设备租赁 | C114: LED变色灯 | D114: TERBLY OVAL 48D Light | E114: Plenary session | F114: 只 | G114: 150 | H114: 64 | I114: 9600 | J114: Y | K114: 150 | L114: 64 | M114: 9600 | N114: Y
A115: AV设备租赁 | B115: 灯光设备租赁 | C115: 灯光版块 | D115: EXPLORER Ovation LED Moving Heads Light | E115: Plenary session | F115: 只 | G115: 400 | H115: 60 | I115: 24000 | J115: Y | K115: 400 | L115: 60 | M115: 24000 | N115: Y
A116: AV设备租赁 | B116: 灯光设备租赁 | C116: 四头灯 | D116: 4 Bulb Flood Light | E116: Plenary session | F116: 只 | G116: 200 | H116: 8 | I116: 1600 | J116: Y | K116: 200 | L116: 8 | M116: 1600 | N116: Y
A117: AV设备租赁 | B117: 灯光设备租赁 | C117: 雾机 | D117: Fog Machine | E117: Plenary session | F117: 台 | G117: 800 | H117: 2 | I117: 1600 | J117: Y | K117: 800 | L117: 2 | M117: 1600 | N117: Y
A118: AV设备租赁 | B118: 灯光设备租赁 | C118: 调光台 | D118: MA grandMA2 Light Console | E118: Plenary session | F118: 台 | G118: 8000 | H118: 1 | I118: 8000 | J118: Y | K118: 8000 | L118: 1 | M118: 8000 | N118: Y
A119: AV设备租赁 | B119: 灯光设备租赁 | C119: 网络信号处理器 | D119: MA grandMA NSP | E119: Plenary session | F119: 套 | G119: 8000 | H119: 1 | I119: 8000 | J119: Y | K119: 8000 | L119: 1 | M119: 8000 | N119: Y
A120: AV设备租赁 | B120: 灯光设备租赁 | C120: 信号放大器 | D120: Lighting DA | E120: Plenary session | F120: 台 | G120: 150 | H120: 6 | I120: 900 | J120: Y | K120: 150 | L120: 6 | M120: 900 | N120: Y
A121: AV设备租赁 | B121: 灯光设备租赁 | C121: Truss 灯光架 | D121: 300mmx300mmx300000mm | E121: Plenary session | F121: 组 | G121: 80 | H121: 300 | I121: 24000 | J121: Y | K121: 80 | L121: 300 | M121: 24000 | N121: Y
A122: AV设备租赁 | B122: 灯光设备租赁 | C122: 圆形TRUSS灯光架 | D122: 300mmx400mm一组（直径依实际采购） | E122: Plenary session | F122: 个 | G122: 4000 | H122: 1 | I122: 4000 | J122: Y | K122: 4000 | L122: 1 | M122: 4000 | N122: Y
A123: AV设备租赁 | B123: 灯光设备租赁 | C123: 追光灯 | D123: AURORA HMI-2500 Follow Spot | E123: Plenary session | F123: 只 | G123: 800 | H123: 2 | I123: =G123*H123 -> 1600 | J123: Y | K123: 800 | L123: 2 | M123: 1600 | N123: Y
A124: AV设备租赁 | B124: 灯光设备租赁 | C124: 控制器( 8路,带RC-8遥控) | D124: COLUMBUS MCKINNON CMC-800-B Controller | E124: Plenary session | F124: 台 | G124: 1500 | H124: 3 | I124: 4500 | J124: Y | K124: 1500 | L124: 3 | M124: 4500 | N124: Y
A125: AV设备租赁 | B125: 灯光设备租赁 | C125: 手动葫芦(1吨,15米) | D125: XIONGYING HSZ-80B Manual Hoist | E125: Plenary session | F125: 个 | G125: 200 | H125: 40 | I125: 8000 | J125: Y | K125: 200 | L125: 40 | M125: 8000 | N125: Y
A126: AV设备租赁 | B126: 灯光设备租赁 | C126: 配电箱(三相,200A) | D126: Power Distributor Cabinet | E126: Plenary session | F126: 个 | G126: 2000 | H126: 4 | I126: 8000 | J126: Y | K126: 2000 | L126: 4 | M126: 8000 | N126: Y
A127: AV设备租赁 | B127: 搭建人员 | C127: 布展工作人员 | E127: For all sessions | F127: 人次 | G127: 300 | H127: 90 | I127: =G127*H127 -> 27000 | J127: Y | K127: 300 | L127: 90 | M127: 27000 | N127: Y
A128: AV设备租赁 | B128: 人员交通 | C128: AV部分人员交通 | D128: 北京-西安 | E128: For all sessions | F128: 人 | G128: 1031 | H128: 12 | I128: 12372 | J128: Y | K128: 1031 | L128: 12 | M128: 12372 | N128: Y
A129: AV设备租赁 | B129: 运输费 | C129: 物料往返运输 | D129: 3辆往返2趟；北京-西安 | E129: For all sessions | F129: 趟 | G129: 12000 | H129: 6 | I129: 72000 | J129: Y | K129: 12000 | L129: 6 | M129: 72000 | N129: Y
A130: Zone TB费用 | B130: 团建费用 | C130: 团建费用 | D130: Zone1城市定向回民街；Zone2非洲鼓；Zone3纳斯卡巨画；Zone5城市定向永兴坊；Zone6纳斯卡巨画 | E130: Team Building | F130: 项 | G130: 35000 | H130: 6 | I130: 210000 | J130: Y | K130: 35000 | L130: 5 | M130: 175000 | N130: Y | O130: 减少项，Zone4未参加团建
A131: Zone dinner费用 | B131: 区域晚宴 | C131: 晚宴费用 | D131: 搭建&AV套餐 | E131: Zone dinner | F131: 项 | G131: 30000 | H131: 6 | I131: =G131*H131 -> 180000 | J131: Y | K131: 17000 | L131: 6 | M131: 102000 | N131: Y | O131: 减少项
A132: Zone dinner费用 | B132: 区域晚宴 | C132: 晚宴费用 | D132: Zone4代采购 | E132: Gala dinner | F132: 项 | J132: Y | K132: 9250 | L132: 1 | M132: =K132*L132 -> 9250 | N132: Y | O132: Zone4特殊需求
A133: Zone dinner费用 | B133: 报销 | C133: 区域报销费用 | D133: Zone1 2180元+Zone2 3068元+Zone3 2991元+Zone4 22040.83元+Zone5 2539.4元+Zone6 2730.9元 | E133: Gala dinner | F133: 项 | G133: 0 | H133: 6 | I133: =G133*H133 -> 0 | J133: Y | K133: 35550.13 | L133: 1 | M133: =K133*L133 -> 35550.13 | N133: Y | O133: 区域报销金额
A134: 道具 | B134: 采购 | C134: 晚宴道具预留费用 | D134: 气氛道具；荧光手环*2000+荧光棒*2000 | E134: Gala dinner | F134: 项 | G134: 8000 | H134: 1 | I134: 8000 | J134: Y | K134: 7000 | L134: 1 | M134: =K134*L134 -> 7000 | N134: Y | O134: 费用减少
A135: 道具 | B135: 采购 | C135: 足球赛篮球赛道具 | D135: 足球*5个+分组背心 | E135: Team Building | F135: 个 | G135: 2000 | H135: 1 | I135: 2000 | J135: Y | K135: 871 | L135: 1 | M135: 871 | N135: Y | O135: 费用减少
A136: 道具 | B136: 运费 | C136: 音箱运费 | D136: 3个音箱 | E136: Team Building | F136: 个 | G136: 500 | H136: 1 | I136: =G136*H136 -> 500 | J136: Y | K136: 500 | L136: 1 | M136: 500 | N136: Y
A137: 人员 | B137: 人员费用 | C137: 晚宴长期服务奖颁奖礼仪 | D137: 礼仪 | E137: Gala dinner | F137: 人/天 | G137: 800 | H137: 2 | I137: 0 | J137: Y | K137: 800 | L137: 2 | M137: 0 | N137: Y
A138: 人员 | B138: 人员费用 | C138: 晚宴DJ | D138: 外籍DJ | E138: Gala dinner | F138: 人/天 | G138: 8000 | H138: 1 | I138: 8000 | J138: Y | K138: 5000 | L138: 4 | M138: =K138*L138 -> 20000 | N138: Y | O138: 增加项；更换为乐队
A139: 人员 | B139: 人员费用 | C139: 裁判 | D139: 篮球赛裁判（1个主裁1个记分员*2） | E139: Team Building | F139: 人/天 | G139: 1500 | H139: 4 | I139: 6000 | J139: Y | K139: 2500 | L139: 1 | M139: 2500 | N139: Y | O139: 减少项；场地裁判
A140: 人员 | B140: 人员费用 | C140: 裁判 | D140: 足球赛裁判（1个主裁个边裁*2） | E140: Team Building | F140: 人/天 | G140: 1500 | H140: 8 | I140: 12000 | J140: Y | K140: 2500 | L140: 1 | M140: 2500 | N140: Y | O140: 减少项；场地裁判
A141: 人员 | B141: 人员费用 | C141: MC | D141: 主持人/长期服务奖颁奖 | E141: Plenary session | F141: 人/天 | G141: 8000 | H141: 1 | I141: 0 | J141: Y | K141: 8000 | L141: 1 | M141: 0 | N141: Y
A142: 人员 | B142: 人员费用 | C142: MC服装 | D142: 主持人服装费用预留 | E142: Plenary session | F142: 人/天 | G142: 1000 | H142: 1 | I142: 1000 | J142: Y | K142: 1000 | L142: 0 | M142: =K142*L142 -> 0 | N142: Y | O142: 减少项
A143: 人员 | B143: 人员费用 | C143: 客户总监 | D143: 此项收费适用于活动和项目执行中的人工费用，包括沟通，咨询及现场支持，不适用于创意、设计以及医学支持类工作 | E143: For all sessions | F143: 人/天 | G143: 1000 | H143: 12 | I143: 12000 | J143: N | K143: 1000 | L143: 12 | M143: 12000 | N143: N | O143: 13日-18日6天2人
A144: 人员 | B144: 人员费用 | C144: 客户经理 | D144: 此项收费适用于活动和项目执行中的人工费用，包括沟通，咨询及现场支持，不适用于创意、设计以及医学支持类工作 | E144: For all sessions | F144: 人/天 | G144: 800 | H144: 12 | I144: 9600 | J144: N | K144: 800 | L144: 12 | M144: 9600 | N144: N | O144: 13日-18日6天2人
A145: 人员 | B145: 人员费用 | C145: 客户主管 | D145: 此项收费适用于活动和项目执行中的人工费用，包括沟通，咨询及现场支持，不适用于创意、设计以及医学支持类工作 | E145: For all sessions | F145: 人/天 | G145: 500 | H145: 10 | I145: 5000 | J145: N | K145: 500 | L145: 10 | M145: 5000 | N145: N | O145: 14日-18日5天2人
A146: 人员 | B146: 人员费用 | C146: 项目经理 | D146: 此项收费适用于活动和项目执行中的人工费用，包括沟通，咨询及现场支持，不适用于创意、设计以及医学支持类工作 | E146: For all sessions | F146: 人/天 | G146: 500 | H146: 10 | I146: 5000 | J146: N | K146: 500 | L146: 10 | M146: 5000 | N146: N | O146: 14日-18日5天2人
A147: 人员 | B147: 人员费用 | C147: 活动现场支持 | E147: For all sessions | F147: 人/天 | G147: 500 | H147: 10 | I147: 5000 | J147: Y | K147: 500 | L147: 16 | M147: 8000 | N147: Y | O147: 增加项；15日、16日现场兼职8人*2
A148: 人员 | B148: 人员费用 | C148: 资深摄像师 | D148: 北京拍摄老板视频（top sales&plenary）/2次拍摄 | E148: Plenary session | F148: 人/天 | G148: 5000 | H148: 1 | I148: =G148*H148 -> 5000 | J148: Y | K148: 5000 | L148: 1 | M148: 5000 | N148: Y | O148: 2次拍摄，4小时内
A149: 人员 | B149: 人员费用 | C149: 摄像师 | D149: 2人 | E149: Gala dinner | F149: 人/天 | G149: 3000 | H149: 2 | I149: 6000 | J149: Y | K149: 3000 | L149: 3 | M149: 9000 | N149: Y | O149: 增加项，数量调整
A150: 人员 | B150: 人员费用 | C150: 摄影师 | D150: 3人 | E150: Gala dinner | F150: 人/天 | G150: 5000 | H150: 3 | I150: 15000 | J150: Y | K150: 5000 | L150: 3 | M150: 15000 | N150: Y
A151: 人员 | B151: 人员费用 | C151: 摄像师 | D151: 2人 | E151: Plenary session | F151: 人/天 | G151: 3000 | H151: 2 | I151: 6000 | J151: Y | K151: 3000 | L151: 3 | M151: 9000 | N151: Y | O151: 增加项，数量调整
A152: 人员 | B152: 人员费用 | C152: 摄影师 | D152: 3人 | E152: Plenary session | F152: 人/天 | G152: 5000 | H152: 3 | I152: 15000 | J152: Y | K152: 5000 | L152: 3 | M152: 15000 | N152: Y
A153: 人员 | B153: 人员费用 | C153: 摄像师 | D153: 2人；足球赛、篮球赛各1人 | E153: Team Building | F153: 人/天 | G153: 3000 | H153: 2 | I153: 6000 | J153: Y | K153: 3000 | L153: 2 | M153: 6000 | N153: Y
A154: 人员 | B154: 人员费用 | C154: 摄影师 | D154: 2人；足球赛、篮球赛各1人 | E154: Team Building | F154: 人/天 | G154: 5000 | H154: 2 | I154: 10000 | J154: Y | K154: 5000 | L154: 2 | M154: 10000 | N154: Y
A155: 人员 | B155: 人员费用 | C155: 摄像师 | D155: 3人；2个场地1人 | E155: Team Building | F155: 人/天 | G155: 3000 | H155: 3 | I155: =G155*H155 -> 9000 | J155: Y | K155: 2000 | L155: 6 | M155: 12000 | N155: Y | O155: 增加项，西安当地摄像师
A156: 人员 | B156: 人员费用 | C156: 摄影师 | D156: 3人；2个场地1人 | E156: Team Building | F156: 人/天 | G156: 5000 | H156: 3 | I156: 15000 | J156: Y | K156: 3000 | L156: 6 | M156: 18000 | N156: Y | O156: 增加项，西安当地摄像师
A157: 人员 | B157: 人员费用 | C157: 摇臂 | D157: 大会2个、晚宴2个 | E157: For all sessions | F157: 人/天 | G157: 8000 | H157: 4 | I157: 32000 | J157: Y | K157: 8000 | L157: 2 | M157: 16000 | N157: Y | O157: 减少项；晚宴大会各1个
A158: 人员 | B158: 人员费用 | C158: 云摄影 | D158: 微信实时上传（含设备及修图） | E158: For all sessions | F158: 场 | G158: 2500 | H158: 4 | I158: 10000 | J158: Y | K158: 2500 | L158: 5 | M158: 12500 | N158: Y | O158: 增加项，区域晚宴2个修图老师
A159: 人员 | B159: 人员费用 | C159: 导播 | D159: 导播 | E159: Plenary session | F159: 人/天 | G159: 6000 | H159: 1 | I159: =G159*H159 -> 6000 | J159: Y | K159: 6000 | L159: 1 | M159: 6000 | N159: Y
A160: 人员 | B160: 人员费用 | C160: 导播 | D160: 导播 | E160: Gala dinner | F160: 人/天 | G160: 6000 | H160: 1 | I160: 6000 | J160: Y | K160: 6000 | L160: 1 | M160: 6000 | N160: Y
A161: 人员 | B161: 人员费用 | C161: 导播系统 | D161: 导播台+监视器+2套录机+通话系统+配套线材等 | E161: Plenary session | F161: 套/天 | G161: 5000 | H161: 1 | I161: 5000 | J161: Y | K161: 5000 | L161: 1 | M161: 5000 | N161: Y
A162: 人员 | B162: 人员费用 | C162: 导播系统 | D162: 导播台+监视器+2套录机+通话系统+配套线材等 | E162: Gala dinner | F162: 套/天 | G162: 5000 | H162: 1 | I162: =G162*H162 -> 5000 | J162: Y | K162: 5000 | L162: 1 | M162: 5000 | N162: Y
A163: 人员 | B163: 人员费用 | C163: 化妆师 | D163: 主持人化妆师；预算未含 | E163: Gala dinner | F163: 人/天 | G163: 1000 | H163: 1 | I163: 0 | J163: Y | K163: 1000 | L163: 1 | M163: 0 | N163: Y
A164: 人员 | B164: 人员费用 | C164: 技术人员 | D164: 灯光，音响，视频，美工，电工；12人4天 | E164: Plenary session | F164: 人/天 | G164: 400 | H164: 48 | I164: =G164*H164 -> 19200 | J164: Y | K164: 400 | L164: 48 | M164: =K164*L164 -> 19200 | N164: Y
A165: 差旅费用 | B165: 差旅费用 | C165: 交通+食宿 | D165: Keynote设计师；西安往返差旅 | E165: Plenary session | F165: 人 | K165: 3000 | L165: 1 | M165: 3000 | N165: Y
A166: 差旅费用 | B166: 差旅费用 | C166: 交通+食宿 | D166: 控台技术总监；北京-西安 | E166: Plenary session | F166: 人 | G166: 3000 | H166: 3 | I166: 9000 | J166: Y | K166: 3000 | L166: 3 | M166: 9000 | N166: Y
A167: 差旅费用 | B167: 差旅费用 | C167: 前期考察 | D167: 前期踩点测量等 | E167: For all sessions | F167: 人 | G167: 2000 | H167: 2 | I167: 4000 | J167: Y | K167: 2000 | L167: 2 | M167: 4000 | N167: Y
A168: 差旅费用 | B168: 差旅费用 | C168: 交通+食宿 | D168: 摄影摄像/成都-西安 | E168: For all sessions | F168: 人 | G168: 1000 | H168: 9 | I168: 9000 | J168: Y | K168: 1000 | L168: 7 | M168: 7000 | N168: Y
A169: 差旅费用 | B169: 差旅费用 | C169: 交通费 | D169: 8位工作人员；北京-西安往返高铁 | E169: For all sessions | F169: 人/天 | G169: 1031 | H169: 8 | I169: 8248 | J169: Y | K169: 1031 | L169: 8 | M169: 8248 | N169: Y
A170: 差旅费用 | B170: 差旅费用 | C170: 住宿费 | D170: 4间工作人员5晚住宿 | E170: For all sessions | F170: 人/天 | G170: 500 | H170: 20 | I170: 10000 | J170: Y | K170: 500 | L170: 20 | M170: 10000 | N170: Y | O170: 13日-18日住宿
A171: 差旅费用 | B171: 差旅费用 | C171: 餐费+当地交通费+通讯费 | D171: 8位工作人员*6天 | E171: For all sessions | F171: 人/天 | G171: 200 | H171: 48 | I171: 9600 | J171: Y | K171: 200 | L171: 48 | M171: 9600 | N171: N
A172: 搭建制作总计(不含服务费和税费)： | I172: =SUM(I15:I171) -> 1799100 | K172: 搭建制作总计(不含服务费和税费)： | M172: =SUM(M15:M171) -> 1795371.13
A173: 其他项费用小计： | K173: 其他项费用小计：
A174: 第三方费用小计 Total 3rd party cost: | I174: =SUM(I15:I171)-I144-I143-I145-I146 -> 1767500 | K174: 第三方费用小计 Total 3rd party cost: | M174: =SUM(M15:M171)-M144-M143-M145-M146-M171 -> 1754171.13
A175: 服务费 Service Fee | D175: 市场营销公司垫付的零星第三方支出，需要收取在实际发生基础上收取服务费的部分。请注意需要付款时提供第三方发票作为支持文件。 | H175: 0.1 | I175: =I174*H175 -> 176750 | K175: 服务费 Service Fee | L175: 0.1 | M175: =M174*L175 -> 175417.113
A176: 不含税总计: | I176: =I172+I175 -> 1975850 | K176: 不含税总计: | M176: =M172+M175 -> 1970788.243
A177: 税金 Tax | H177: 0.06 | I177: =I176*H177 -> 118551 | K177: 税金 Tax | L177: 0.06 | M177: =M176*L177 -> 118247.2946

Sheet Video视频
A1: 施维雅报价明细-视频制作
A4: Currency币种:CNY人民币
A5: 说明：
A6: * | B6: 施维雅只接受6%的增值税,其他税费请一律含进单价
A7: * | B7: 如有任何修改或添加行，请用红色字体显示
A8: * | B8: 请不要删除行
A9: * | B9: 所有单价都不含增值税
E11: 具体项目预算 Quotation | I11: 具体项目结算 Quotation
A12: 视频名称 | B12: 项目 Item | C12: 内容描述 Description | D12: 收费单位 Unit | E12: 单价 Unit Price | F12: 数量 Unit | G12: 总价 Subtotal | H12: 是否第三方费用? （Y/N) | I12: 单价 Unit Price | J12: 数量 Unit | K12: 总价 Subtotal | L12: 是否第三方费用? （Y/N) | M12: 备注
A13: opening Video - plenary | B13: 脚本大纲 | C13: 视频主线，大纲发展 | D13: 个/pc | E13: 3000 | F13: 1 | G13: =E13*F13 -> 3000 | H13: N | I13: 3000 | J13: 1 | K13: =I13*J13 -> 3000 | L13: N
A14: opening Video - plenary | B14: 脚本编辑 | C14: 活动或拍摄活动前期的脚本编写 | D14: 小时/hour | I14: 500 | J14: 8 | K14: 4000 | L14: N
A15: opening Video - plenary | B15: 视频素材收集 | C15: 包含拍摄前采访、图片检索、对施维雅提供的素材进行整理等 | D15: 小时/hour | I15: 150 | J15: 24 | K15: 3600 | L15: Y
A16: opening Video - plenary | B16: 特效 | C16: 转场特效，字幕特效，logo特效等 | D16: 个/pc | I16: 600 | J16: 25 | K16: 15000 | L16: Y
A17: opening Video - plenary | B17: 配乐 | C17: 为视频提供背景音乐，音频剪辑(不包括版权音乐的版权费) | D17: 个/pc | I17: 3000 | J17: 1 | K17: 3000 | L17: Y
A18: opening Video - plenary | B18: 字幕 | C18: 按照剧本为视频添加字幕(不包括特效字幕)；3分钟内 | D18: 个/pc | I18: 3000 | J18: 1 | K18: 3000 | L18: Y
A19: opening Video - plenary | B19: 三维特效 | C19: 声音特效、视觉特效等 | D19: 秒 | I19: 800 | J19: 90 | K19: 72000 | L19: Y
A20: opening Video - plenary | B20: 后期加工及内容剪辑 | C20: 视频剪辑，按工作时间收取 | D20: 小时/hour | I20: 500 | J20: 32 | K20: 16000 | L20: Y
A21: opening Video - plenary | B21: 侧屏视频剪辑合成 | C21: 两侧纱幕+LED侧屏视频剪辑合成 | D21: 个/pc | I21: 4500 | J21: 4 | K21: 18000 | L21: Y
A22: opening Video - plenary | B22: 多媒体的合成 | C22: 包含配音、配乐、字幕的合成；收费标准指一套成品 | D22: 个/pc | I22: 200 | J22: 24 | K22: 4800 | L22: Y
A23: opening Video - plenary | B23: 视频制作 | C23: 多媒体制作合成 | D23: 个/pc | E23: 140000 | F23: 1 | G23: =E23*F23 -> 140000 | H23: Y | I23: 0 | J23: 1 | K23: 0 | L23: Y
A24: top sales Video | B24: 脚本大纲 | C24: 视频主线，大纲发展 | D24: 个/pc | E24: 3000 | F24: 1 | G24: 3000 | H24: N | I24: 3000 | J24: 1 | K24: 3000 | L24: N
A25: top sales Video | B25: 视频素材收集 | C25: 包含拍摄前采访、图片检索、对施维雅提供的素材进行整理等 | D25: 小时/hour | I25: 150 | J25: 16 | K25: =I25*J25 -> 2400 | L25: N
A26: top sales Video | B26: 特效 | C26: 转场特效，字幕特效，logo特效等 | D26: 个/pc | I26: 600 | J26: 4 | K26: 2400 | L26: Y
A27: top sales Video | B27: 配乐 | C27: 为视频提供背景音乐，音频剪辑(不包括版权音乐的版权费) | D27: 个/pc | I27: 3000 | J27: 1 | K27: 3000 | L27: Y
A28: top sales Video | B28: 字幕 | C28: 按照剧本为视频添加字幕(不包括特效字幕)；3分钟内 | D28: 个/pc | I28: 3000 | J28: 1 | K28: 3000 | L28: Y
A29: top sales Video | B29: 二维动画制作（Flash） | D29: 秒 | I29: 300 | J29: 60 | K29: 18000 | L29: Y
A30: top sales Video | B30: 三维特效 | C30: 视觉特效 | D30: 秒 | I30: 800 | J30: 8 | K30: 6400 | L30: Y
A31: top sales Video | B31: 后期加工及内容剪辑 | C31: 视频剪辑，按工作时间收取 | D31: 小时/hour | I31: 500 | J31: 20 | K31: 10000 | L31: Y
A32: top sales Video | B32: 侧屏视频剪辑合成 | C32: 两侧纱幕 | D32: 个/pc | I32: 3000 | J32: 2 | K32: 6000 | L32: Y
A33: top sales Video | B33: 修图 | C33: 对实拍的人物照片进行修补；老板绿幕抠图部分 | D33: 张/pc | I33: 200 | J33: 15 | K33: 3000 | L33: Y
A34: top sales Video | B34: 修图 | C34: 对收集的top sales照片进行剪辑处理； | D34: 小时/hour | I34: 500 | J34: 10 | K34: =I34*J34 -> 5000 | L34: Y
A35: top sales Video | B35: 多媒体的合成 | C35: 包含配音、配乐、字幕的合成；收费标准指一套成品 | D35: 个/pc | I35: 200 | J35: 4 | K35: 800 | L35: Y
A36: top sales Video | B36: 视频制作 | C36: 多媒体制作合成 | D36: 个/pc | E36: 60000 | F36: 1 | G36: 60000 | H36: Y | I36: 0 | J36: 1 | K36: 0 | L36: Y
A37: Post-event video - Plenaryr&sports （Plenaryr&sports花絮视频） | B37: 配乐 | C37: 为视频提供背景音乐(不包括版权音乐的版权费) | D37: 个/pc | E37: 500 | F37: 1 | G37: 500 | H37: Y | I37: 500 | J37: 1 | K37: 500 | L37: Y
A38: Post-event video - Plenaryr&sports （Plenaryr&sports花絮视频） | B38: 后期加工及内容剪辑（连夜剪辑） | C38: 视频剪辑，指对母带进行剪辑，按工作时间收取 | D38: 小时/hour | E38: 1000 | F38: 10 | G38: 10000 | H38: Y | I38: 1000 | J38: 10 | K38: 10000 | L38: Y
A39: 整体活动剪辑 | B39: 配乐 | C39: 为视频提供背景音乐(不包括版权音乐的版权费) | D39: 个/pc | E39: 500 | F39: 1 | G39: 500 | H39: Y | I39: 500 | J39: 1 | K39: 500 | L39: Y
A40: 整体活动剪辑 | B40: 后期加工及内容剪辑 | C40: 视频剪辑，指对母带进行剪辑，按工作时间收取 | D40: 小时/hour | E40: 1000 | F40: 10 | G40: 10000 | H40: Y | I40: 1000 | J40: 6 | K40: 6000 | L40: Y | M40: 此项6折优惠
A41: 动态KV | B41: 配乐 | C41: 特效音 | D41: 个/pc | E41: 500 | F41: 1 | G41: 500 | H41: Y | I41: 500 | J41: 1 | K41: 500 | L41: Y
A42: 动态KV | B42: 特效 | C42: 循环动画；粒子特效，光线特效、logo特效等 | D42: 小时/hour | E42: 800 | F42: 10 | G42: 8000 | H42: Y | I42: 800 | J42: 10 | K42: 8000 | L42: Y
A43: 采访视频剪辑 | B43: 视频剪辑 | C43: 根据采访视频剪辑，加字幕，背景音乐 | D43: 个/pc | E43: 5000 | F43: 2 | G43: =E43*F43 -> 10000 | H43: Y | I43: 5000 | J43: 0 | K43: =I43*J43 -> 0 | L43: Y | M43: 减少项
A44: 视频总计(不含服务费和税费): | G44: =SUM(G13:G43) -> 245500 | I44: 视频总计(不含服务费和税费): | K44: =SUM(K13:K43) -> 230900
A45: 其他项费用小计： | G45: 0 | I45: 其他项费用小计： | K45: 0
A46: 第三方费用小计 Total 3rd party cost: | G46: =SUM(G23,G36:G43) -> 239500 | I46: 第三方费用小计 Total 3rd party cost: | K46: =SUM(K13:K43)-K13-K14-K24-K25 -> 218500
B47: 服务费 Service Fee | C47: 市场营销公司垫付的零星第三方支出，需要收取在实际发生基础上收取服务费的部分。请注意需要付款时提供第三方发票作为支持文件。 | F47: 0.1 | G47: =G46*F47 -> 23950 | I47: 服务费 Service Fee | J47: 0.1 | K47: =K46*J47 -> 21850
A48: 不含税总计: | G48: =G44+G47 -> 269450 | I48: 不含税总计: | K48: =K44+K47 -> 252750
A49: 税金 Tax | F49: 0.06 | G49: =G48*F49 -> 16167 | I49: 税金 Tax | J49: 0.06 | K49: =K48*J49 -> 15165

Sheet Sheet3 (hidden)
B2: Plenary session | C2: Creative director
B3: Gala dinner | C3: Associate Creative Director
B4: Team Building | C4: Copywriter
B5: Closing ceremony | C5: 2D designer
B6: For all sessions | C6: Senior Project Manager
C7: Project Manager
C8: 3D designer
C9: Developer
C10: Technicals

Sheet 费用明细
B2: 第三方费用合计 | C2: =Creative创意设计!L46+Event搭建制作!M174+Video视频!K46 -> 2048511.13
B3: 伯乐仕支付费用 | C3: =SUM(C5:C10) -> 255950.13
B4: keynote设计 | C4: =Creative创意设计!L30+Event搭建制作!M165 -> 38000
B5: 40周年大旗子 | C5: =Event搭建制作!M35 -> 20160
B6: 绿地笔克场地费用 | C6: =Event搭建制作!M36+Event搭建制作!M37 -> 16240
B7: 团建费用 | C7: =Event搭建制作!M130 -> 175000
B8: 活动现场支持 | C8: =Event搭建制作!M147 -> 8000
B9: 横幅 | C9: 1000
B10: 区域报销 | C10: =Event搭建制作!M133 -> 35550.13
B11: 除伯乐仕支付康辉费用 | C11: =C2-C3 -> 1792561
